[Event "10th LBHM Open 2024"]
[Site "Pune"]
[Date "2024.05.21"]
[Round "1.9"]
[White "Yati Agarwal"]
[Black "Md Imran"]
[Result "0-1"]
[ECO "B13"]
[WhiteElo "1553"]
[BlackElo "2184"]
[PlyCount "136"]
[EventDate "2024.05.21"]
[EventType "swiss"]
[EventCountry "IND"]
[TimeControl "5400+30"]

1. e4 {[%emt 0:00:02]} c6 {[%emt 0:00:16]} 2. d4 {[%emt 0:00:05]} d5 {[%emt 0:00:01]} 3. exd5 {[%emt 0:00:05]} cxd5 {[%emt 0:00:02]} 4. Bd3 {[%emt 0:00:16]} Nc6 {[%emt 0:00:03]} 5. c3 {[%emt 0:00:08]} Qc7 {[%emt 0:00:02]} 6. Ne2 {[%emt 0:00:42]} Bg4 {[%emt 0:00:03]} 7. O-O {[%emt 0:00:19]} e6 {[%emt 0:00:07]} 8. Qe1 {[%emt 0:00:44]} Nf6 {[%emt 0:00:02]} 9. h3 {[%emt 0:00:35]} Bh5 {[%emt 0:00:11]} 10. Bf4 {[%emt 0:00:09]} Bd6 {[%emt 0:00:02]} 11. Bxd6 {[%emt 0:01:08]} Qxd6 {[%emt 0:00:02]} 12. Ng3 {[%emt 0:04:44]} Bg6 {[%emt 0:00:03]} 13. Qe2 {[%emt 0:00:31]} O-O {[%emt 0:02:14]} 14. f4 {[%emt 0:00:57]} Ne7 {[%emt 0:02:47]} 15. Qf3 {[%emt 0:01:39]} Qb6 {[%emt 0:01:33]} 16. b3 {[%emt 0:03:26]} Rac8 {[%emt 0:01:08]} 17. Bxg6 {[%emt 0:00:45]} hxg6 {[%emt 0:00:05]} 18. Nd2 {[%emt 0:00:49]} Nf5 {[%emt 0:00:06]} 19. Qd3 {[%emt 0:02:28]} Rc7 {[%emt 0:00:23]} 20. Ne2 {[%emt 0:00:59]} Rfc8 {[%emt 0:00:13]} 21. c4 {[%emt 0:03:31]} dxc4 {[%emt 0:00:25]} 22. bxc4 {[%emt 0:00:16]} Qa6 {[%emt 0:00:21]} 23. Rf3 {[%emt 0:04:39]} b6 {[%emt 0:01:36]} 24. Qa3 {[%emt 0:13:50]} Qxa3 {[%emt 0:01:53]} 25. Rxa3 {[%emt 0:00:05]} Nd6 {[%emt 0:00:03]} 26. Kf2 {[%emt 0:01:08]} Nfe4+ {[%emt 0:00:14]} 27. Nxe4 {[%emt 0:00:36]} Nxe4+ {[%emt 0:00:02]} 28. Ke3 {[%emt 0:00:27]} Nd6 {[%emt 0:00:04]} 29. Kd3 {[%emt 0:02:04]} Nxc4 {[%emt 0:00:08]} 30. Rb3 {[%emt 0:00:54]} Kf8 {[%emt 0:01:05]} 31. Rc3 {[%emt 0:03:02]} Nb2+ {[%emt 0:00:18]} 32. Kd2 {[%emt 0:00:11]} Rxc3 {[%emt 0:00:24]} 33. Nxc3 {[%emt 0:00:10]} Rc4 {[%emt 0:00:15]} 34. Ne2 {[%emt 0:00:57]} Rc8 {[%emt 0:00:51]} 35. Nc3 {[%emt 0:00:51]} Ke7 {[%emt 0:00:32]} 36. Re1 {[%emt 0:01:29]} Rc4 {[%emt 0:01:14]} 37. Ne2 {[%emt 0:00:38]} a6 {[%emt 0:01:52]} 38. Rb1 {[%emt 0:01:07]} Na4 {[%emt 0:00:04]} 39. Kd3 {[%emt 0:00:36]} b5 {[%emt 0:00:04]} 40. Rb3 {[%emt 0:02:12]} Kd6 {[%emt 0:03:07]} 41. Ng3 {[%emt 0:00:56]} Kd5 {[%emt 0:03:58]} 42. Ne2 {[%emt 0:00:34]} b4 {[%emt 0:00:45]} 43. f5 {[%emt 0:01:00]} e5 {[%emt 0:00:09]} 44. dxe5 {[%emt 0:01:00]} Nc5+ {[%emt 0:00:01]} 45. Kd2 {[%emt 0:01:08]} Nxb3+ {[%emt 0:00:03]} 46. axb3 {[%emt 0:00:24]} Re4 {[%emt 0:00:02]} 47. f6 {[%emt 0:00:38]} gxf6 {[%emt 0:00:06]} 48. exf6 {[%emt 0:00:13]} a5 {[%emt 0:00:20]} 49. Kd3 {[%emt 0:00:23]} Re8 {[%emt 0:00:16]} 50. g4 {[%emt 0:01:02]} Rh8 {[%emt 0:00:13]} 51. Ng1 {[%emt 0:01:06]} Ke5 {[%emt 0:00:15]} 52. g5 {[%emt 0:00:07]} Kf4 {[%emt 0:00:03]} 53. Ne2+ {[%emt 0:01:29]} Kxg5 {[%emt 0:00:04]} 54. Kc4 {[%emt 0:00:46]} Rxh3 {[%emt 0:00:03]} 55. Kb5 {[%emt 0:00:39]} Rxb3 {[%emt 0:00:05]} 56. Kxa5 {[%emt 0:00:19]} Re3 {[%emt 0:00:01]} 57. Nd4 {[%emt 0:00:34]} b3 {[%emt 0:00:01]} 58. Nxb3 {[%emt 0:00:45]} Rxb3 {[%emt 0:00:03]} 59. Ka4 {[%emt 0:00:46]} Rb8 {[%emt 0:00:02]} 60. Ka5 {[%emt 0:00:43]} Kxf6 {[%emt 0:00:02]} 61. Ka6 {[%emt 0:01:09]} g5 {[%emt 0:00:01]} 62. Ka7 {[%emt 0:01:02]} Rb1 {[%emt 0:00:03]} 63. Ka6 {[%emt 0:00:24]} g4 {[%emt 0:00:01]} 64. Ka5 {[%emt 0:00:07]} g3 {[%emt 0:00:01]} 65. Ka4 {[%emt 0:00:18]} g2 {[%emt 0:00:01]} 66. Ka3 {[%emt 0:00:13]} g1=R {[%emt 0:00:05]} 67. Ka2 {[%emt 0:00:23]} Rb5 {[%emt 0:00:02]} 68. Ka3 {[%emt 0:00:22]} Ra1# {[%emt 0:00:02]} 0-1

[Event "10th LBHM Open 2024"]
[Site "Pune"]
[Date "2024.05.21"]
[Round "1.10"]
[White "Koustuv Dash"]
[Black "Kanishk Sagar Sawant"]
[Result "1-0"]
[ECO "A84"]
[WhiteElo "2133"]
[BlackElo "1554"]
[PlyCount "41"]
[EventDate "2024.05.21"]
[EventType "swiss"]
[EventCountry "IND"]
[TimeControl "5400+30"]

1. d4 {[%emt 0:00:18]} b6 {[%emt 0:00:01]} 2. c4 {[%emt 0:00:35]} e6 {[%emt 0:00:04]} 3. Nc3 {[%emt 0:00:15]} Bb7 {[%emt 0:00:03]} 4. Nf3 {[%emt 0:03:27]} Bb4 {[%emt 0:01:26]} 5. Bd2 {[%emt 0:00:53]} f5 {[%emt 0:01:40]} 6. g3 {[%emt 0:03:43]} Nf6 {[%emt 0:00:14]} 7. Bg2 {[%emt 0:00:02]} O-O {[%emt 0:00:05]} 8. O-O {[%emt 0:00:11]} Be7 {[%emt 0:01:42]} 9. d5 {[%emt 0:03:28]} exd5 {[%emt 0:01:12]} 10. cxd5 {[%emt 0:00:37]} Ne4 {[%emt 0:00:06]} 11. Nd4 {[%emt 0:07:19]} Bf6 {[%emt 0:03:02]} 12. Bf4 {[%emt 0:02:17]} Nxc3 {[%emt 0:05:14]} 13. bxc3 {[%emt 0:00:04]} Bxd4 {[%emt 0:00:47]} 14. d6 {[%emt 0:11:41]} Bxf2+ {[%emt 0:02:16]} 15. Rxf2 {[%emt 0:00:19]} c6 {[%emt 0:00:05]} 16. e4 {[%emt 0:07:09]} c5 {[%emt 0:01:21]} 17. exf5 {[%emt 0:00:26]} Bxg2 {[%emt 0:00:22]} 18. Kxg2 {[%emt 0:00:02]} Rxf5 {[%emt 0:00:49]} 19. g4 {[%emt 0:00:24]} Rf8 {[%emt 0:00:34]} 20. Qd5+ {[%emt 0:00:12]} Kh8 {[%emt 0:00:06]} 21. Qxa8 {[%emt 0:00:09]} 1-0

[Event "10th LBHM Open 2024"]
[Site "Pune"]
[Date "2024.05.21"]
[Round "2.1"]
[White "Ghosh, Diptayan"]
[Black "Aadya Ranganath"]
[Result "1-0"]
[ECO "B07"]
[WhiteElo "2564"]
[BlackElo "1667"]
[PlyCount "129"]
[EventDate "2024.05.21"]
[EventType "swiss"]
[EventCountry "IND"]
[TimeControl "5400+30"]

1. Nf3 {[%emt 0:00:45]} Nf6 {[%emt 0:00:10]} 2. g3 {[%emt 0:00:06]} g6 {[%emt 0:00:05]} 3. Bg2 {[%emt 0:00:05]} Bg7 {[%emt 0:00:06]} 4. d4 {[%emt 0:00:05]} O-O {[%emt 0:00:07]} 5. O-O {[%emt 0:00:05]} d6 {[%emt 0:00:10]} 6. Re1 {[%emt 0:00:40]} Nbd7 {[%emt 0:04:10]} 7. e4 {[%emt 0:00:08]} e5 {[%emt 0:00:17]} 8. Nc3 {[%emt 0:00:05]} Re8 {[%emt 0:01:17]} 9. h3 {[%emt 0:00:42]} exd4 {[%emt 0:04:38]} 10. Nxd4 {[%emt 0:00:06]} Nc5 {[%emt 0:02:59]} 11. Nb3 {[%emt 0:04:37]} Nxb3 {[%emt 0:03:25]} 12. axb3 {[%emt 0:00:04]} a6 {[%emt 0:02:14]} 13. Be3 {[%emt 0:03:01]} c6 {[%emt 0:03:57]} 14. Qd2 {[%emt 0:15:29]} Be6 {[%emt 0:05:24]} 15. Rad1 {[%emt 0:07:24]} d5 {[%emt 0:03:17]} 16. Bg5 {[%emt 0:10:08]} Qc7 {[%emt 0:08:26]} 17. Bf4 {[%emt 0:01:37]} Qa5 {[%emt 0:01:48]} 18. exd5 {[%emt 0:11:00]} Nxd5 {[%emt 0:02:14]} 19. Nxd5 {[%emt 0:00:43]} Qxd2 {[%emt 0:00:12]} 20. Rxd2 {[%emt 0:00:15]} Bxd5 {[%emt 0:00:21]} 21. Rxe8+ {[%emt 0:00:06]} Rxe8 {[%emt 0:00:08]} 22. Bxd5 {[%emt 0:00:04]} cxd5 {[%emt 0:00:13]} 23. c3 {[%emt 0:01:56]} Rd8 {[%emt 0:00:23]} 24. Be3 {[%emt 0:00:05]} f5 {[%emt 0:01:06]} 25. Kf1 {[%emt 0:01:57]} Kf7 {[%emt 0:02:29]} 26. Ke2 {[%emt 0:01:09]} Ke6 {[%emt 0:00:12]} 27. Kd3 {[%emt 0:00:27]} Rc8 {[%emt 0:02:18]} 28. Re2 {[%emt 0:00:23]} Kf7 {[%emt 0:01:17]} 29. Bd4 {[%emt 0:03:45]} Bh6 {[%emt 0:00:29]} 30. Re5 {[%emt 0:01:06]} Rd8 {[%emt 0:00:10]} 31. b4 {[%emt 0:00:07]} Bf8 {[%emt 0:01:35]} 32. Bc5 {[%emt 0:01:10]} Bd6 {[%emt 0:02:18]} 33. Bxd6 {[%emt 0:02:51]} Rxd6 {[%emt 0:00:06]} 34. Kd4 {[%emt 0:00:02]} b5 {[%emt 0:01:07]} 35. b3 {[%emt 0:00:20]} h5 {[%emt 0:00:38]} 36. h4 {[%emt 0:01:38]} Rc6 {[%emt 0:00:28]} 37. f3 {[%emt 0:03:12]} Re6 {[%emt 0:01:48]} 38. Kxd5 {[%emt 0:32:07]} Rb6 {[%emt 0:00:33]} 39. f4 {[%emt 0:00:00]} Rb8 {[%emt 0:01:04]} 40. Re3 {[%emt 0:00:00]} Rc8 {[%emt 0:00:07]} 41. Kd6 {[%emt 0:00:00]} Rd8+ {[%emt 0:00:05]} 42. Kc6 {[%emt 0:00:00]} Rd1 {[%emt 0:00:27]} 43. c4 {[%emt 0:00:00]} bxc4 {[%emt 0:00:40]} 44. bxc4 {[%emt 0:00:00]} Rd4 {[%emt 0:00:04]} 45. Kc5 {[%emt 0:00:00]} Rd1 {[%emt 0:00:26]} 46. b5 {[%emt 0:00:00]} axb5 {[%emt 0:00:14]} 47. cxb5 {[%emt 0:00:00]} Rc1+ {[%emt 0:00:10]} 48. Kd6 {[%emt 0:00:00]} Rb1 {[%emt 0:00:34]} 49. Kc6 {[%emt 0:00:00]} Rc1+ {[%emt 0:00:05]} 50. Kb7 {[%emt 0:00:00]} Rc4 {[%emt 0:00:10]} 51. b6 {[%emt 0:00:00]} Re4 {[%emt 0:00:08]} 52. Rc3 {[%emt 0:00:00]} Ke7 {[%emt 0:00:16]} 53. Kc7 {[%emt 0:00:00]} Ke8 {[%emt 0:00:15]} 54. b7 {[%emt 0:00:00]} Re7+ {[%emt 0:00:03]} 55. Kc8 {[%emt 0:00:00]} Rxb7 {[%emt 0:00:05]} 56. Kxb7 {[%emt 0:00:00]} Ke7 {[%emt 0:00:08]} 57. Kc6 {[%emt 0:00:00]} Ke6 {[%emt 0:00:04]} 58. Re3+ {[%emt 0:00:00]} Kf6 {[%emt 0:00:04]} 59. Kd6 {[%emt 0:00:00]} g5 {[%emt 0:00:04]} 60. hxg5+ {[%emt 0:00:00]} Kg6 {[%emt 0:00:19]} 61. Ke5 {[%emt 0:00:00]} h4 {[%emt 0:00:49]} 62. gxh4 {[%emt 0:00:00]} Kh5 {[%emt 0:00:07]} 63. Kxf5 {[%emt 0:00:00]} Kxh4 {[%emt 0:00:10]} 64. Rd3 {[%emt 0:00:00]} Kh5 {[%emt 0:00:08]} 65. Rh3# {[%emt 0:00:00]} 1-0

[Event "10th LBHM Open 2024"]
[Site "Pune"]
[Date "2024.05.21"]
[Round "2.2"]
[White "Gaurang Bhandari"]
[Black "Aronyak Ghosh"]
[Result "0-1"]
[ECO "B15"]
[WhiteElo "1670"]
[BlackElo "2536"]
[PlyCount "92"]
[EventDate "2024.05.21"]
[EventType "swiss"]
[EventCountry "IND"]
[TimeControl "5400+30"]

1. e4 {[%emt 0:00:02]} c6 {[%emt 0:00:59]} 2. Nf3 {[%emt 0:00:07]} d5 {[%emt 0:00:23]} 3. Nc3 {[%emt 0:00:07]} g6 {[%emt 0:01:25]} 4. d4 {[%emt 0:04:24]} Bg7 {[%emt 0:00:13]} 5. exd5 {[%emt 0:00:35]} cxd5 {[%emt 0:00:11]} 6. Bf4 {[%emt 0:00:10]} Nf6 {[%emt 0:06:35]} 7. Bd3 {[%emt 0:06:22]} Nc6 {[%emt 0:00:55]} 8. O-O {[%emt 0:05:05]} Bg4 {[%emt 0:02:20]} 9. Be2 {[%emt 0:02:47]} e6 {[%emt 0:06:39]} 10. h3 {[%emt 0:01:50]} Bxf3 {[%emt 0:01:13]} 11. Bxf3 {[%emt 0:00:08]} Qb6 {[%emt 0:02:00]} 12. Be3 {[%emt 0:07:47]} Qxb2 {[%emt 0:03:30]} 13. Na4 {[%emt 0:03:26]} Qa3 {[%emt 0:02:23]} 14. Nc5 {[%emt 0:01:55]} b6 {[%emt 0:02:17]} 15. Nd3 {[%emt 0:01:31]} Rc8 {[%emt 0:00:38]} 16. Qd2 {[%emt 0:10:52]} O-O {[%emt 0:01:29]} 17. Rfb1 {[%emt 0:05:17]} Na5 {[%emt 0:00:47]} 18. Ne5 {[%emt 0:02:04]} Nc4 {[%emt 0:05:51]} 19. Nxc4 {[%emt 0:00:24]} Rxc4 {[%emt 0:00:08]} 20. Rb3 {[%emt 0:01:09]} Qd6 {[%emt 0:00:55]} 21. c3 {[%emt 0:01:34]} Rfc8 {[%emt 0:00:51]} 22. Rc1 {[%emt 0:01:40]} Ne4 {[%emt 0:01:06]} 23. Bxe4 {[%emt 0:03:08]} dxe4 {[%emt 0:00:03]} 24. a3 {[%emt 0:03:31]} Qd5 {[%emt 0:01:15]} 25. Rb4 {[%emt 0:01:45]} b5 {[%emt 0:01:48]} 26. Rxc4 {[%emt 0:02:12]} Rxc4 {[%emt 0:00:10]} 27. Qb2 {[%emt 0:02:11]} a6 {[%emt 0:00:13]} 28. Rc2 {[%emt 0:02:12]} Bf8 {[%emt 0:00:27]} 29. Qa2 {[%emt 0:02:25]} Ra4 {[%emt 0:01:25]} 30. Bc1 {[%emt 0:01:15]} Qxa2 {[%emt 0:01:18]} 31. Rxa2 {[%emt 0:00:11]} a5 {[%emt 0:00:35]} 32. Kf1 {[%emt 0:04:26]} b4 {[%emt 0:00:20]} 33. Bb2 {[%emt 0:00:09]} bxa3 {[%emt 0:01:27]} 34. Ba1 {[%emt 0:00:11]} f5 {[%emt 0:01:16]} 35. Ke2 {[%emt 0:00:18]} Kf7 {[%emt 0:02:02]} 36. Kd1 {[%emt 0:00:31]} Rc4 {[%emt 0:00:45]} 37. Kc2 {[%emt 0:00:48]} a4 {[%emt 0:00:15]} 38. Kb1 {[%emt 0:00:45]} e5 {[%emt 0:00:26]} 39. Rd2 {[%emt 0:01:08]} exd4 {[%emt 0:01:23]} 40. cxd4 {[%emt 0:02:02]} Bb4 {[%emt 0:00:04]} 41. Rd1 {[%emt 0:01:26]} a2+ {[%emt 0:00:19]} 42. Kxa2 {[%emt 0:00:23]} Rc2+ {[%emt 0:00:04]} 43. Kb1 {[%emt 0:00:47]} Rxf2 {[%emt 0:00:12]} 44. d5 {[%emt 0:01:09]} e3 {[%emt 0:00:07]} 45. Bd4 {[%emt 0:00:15]} e2 {[%emt 0:00:10]} 46. Rc1 {[%emt 0:01:58]} Rf1 {[%emt 0:00:05]} 0-1

[Event "10th LBHM Open 2024"]
[Site "Pune"]
[Date "2024.05.21"]
[Round "2.3"]
[White "Neelash Saha"]
[Black "Narendra Agarwal"]
[Result "1-0"]
[ECO "A06"]
[WhiteElo "2483"]
[BlackElo "1667"]
[PlyCount "87"]
[EventDate "2024.05.21"]
[EventType "swiss"]
[EventCountry "IND"]
[TimeControl "5400+30"]

1. Nf3 {[%emt 0:00:04]} Nf6 {[%emt 0:00:25]} 2. e3 {[%emt 0:00:22]} e6 {[%emt 0:01:02]} 3. b3 {[%emt 0:00:19]} d5 {[%emt 0:00:22]} 4. Bb2 {[%emt 0:00:06]} c5 {[%emt 0:01:12]} 5. Bb5+ {[%emt 0:01:20]} Bd7 {[%emt 0:01:10]} 6. c4 {[%emt 0:00:45]} Bxb5 {[%emt 0:03:45]} 7. cxb5 {[%emt 0:00:06]} Nbd7 {[%emt 0:00:20]} 8. O-O {[%emt 0:00:15]} Be7 {[%emt 0:01:33]} 9. Qe2 {[%emt 0:00:52]} O-O {[%emt 0:00:50]} 10. d3 {[%emt 0:01:07]} a6 {[%emt 0:06:12]} 11. bxa6 {[%emt 0:00:40]} Rxa6 {[%emt 0:01:09]} 12. Nbd2 {[%emt 0:00:11]} Qb8 {[%emt 0:02:40]} 13. d4 {[%emt 0:00:27]} Rc8 {[%emt 0:10:16]} 14. Rfc1 {[%emt 0:07:30]} Rac6 {[%emt 0:10:27]} 15. a3 {[%emt 0:04:49]} cxd4 {[%emt 0:04:02]} 16. Rxc6 {[%emt 0:00:06]} bxc6 {[%emt 0:00:38]} 17. exd4 {[%emt 0:00:27]} c5 {[%emt 0:02:23]} 18. dxc5 {[%emt 0:12:32]} Bxc5 {[%emt 0:04:48]} 19. b4 {[%emt 0:04:01]} Bd6 {[%emt 0:01:23]} 20. Nf1 {[%emt 0:01:07]} e5 {[%emt 0:04:36]} 21. Rd1 {[%emt 0:00:59]} d4 {[%emt 0:00:48]} 22. Ng3 {[%emt 0:00:41]} g6 {[%emt 0:01:27]} 23. Ng5 {[%emt 0:01:06]} Bf8 {[%emt 0:02:05]} 24. f4 {[%emt 0:05:18]} exf4 {[%emt 0:03:52]} 25. N3e4 {[%emt 0:00:34]} Nxe4 {[%emt 0:00:55]} 26. Qxe4 {[%emt 0:00:06]} Qe5 {[%emt 0:02:17]} 27. Qxd4 {[%emt 0:01:39]} Qxd4+ {[%emt 0:00:33]} 28. Bxd4 {[%emt 0:00:06]} Ra8 {[%emt 0:01:39]} 29. Rd3 {[%emt 0:01:46]} f6 {[%emt 0:01:59]} 30. Ne6 {[%emt 0:03:23]} Bd6 {[%emt 0:03:41]} 31. Bb2 {[%emt 0:06:14]} Be5 {[%emt 0:01:12]} 32. Bxe5 {[%emt 0:07:00]} Nxe5 {[%emt 0:00:09]} 33. Rc3 {[%emt 0:01:04]} g5 {[%emt 0:00:21]} 34. b5 {[%emt 0:01:41]} Kf7 {[%emt 0:01:06]} 35. Nd4 {[%emt 0:00:55]} Ke7 {[%emt 0:00:29]} 36. b6 {[%emt 0:01:02]} Rb8 {[%emt 0:05:05]} 37. Nc6+ {[%emt 0:03:26]} Nxc6 {[%emt 0:00:13]} 38. Rxc6 {[%emt 0:00:02]} Kd7 {[%emt 0:00:55]} 39. Rxf6 {[%emt 0:00:07]} Kc8 {[%emt 0:00:30]} 40. Rf8+ {[%emt 0:00:50]} Kb7 {[%emt 0:00:02]} 41. Rxb8+ {[%emt 0:00:06]} Kxb8 {[%emt 0:00:06]} 42. a4 {[%emt 0:00:03]} Kb7 {[%emt 0:00:30]} 43. a5 {[%emt 0:00:02]} h5 {[%emt 0:00:07]} 44. h3 {[%emt 0:00:35]} 1-0

[Event "10th LBHM Open 2024"]
[Site "Pune"]
[Date "2024.05.21"]
[Round "2.4"]
[White "Kadam Arnav"]
[Black "Nitin, S.."]
[Result "0-1"]
[ECO "B51"]
[WhiteElo "1670"]
[BlackElo "2356"]
[PlyCount "102"]
[EventDate "2024.05.21"]
[EventType "swiss"]
[EventCountry "IND"]
[TimeControl "5400+30"]

1. e4 c5 2. Nf3 d6 3. Bb5+ Nd7 4. c4 a6 5. Ba4 Ngf6 6. Nc3 e6 7. O-O Be7 8. d4 cxd4 9. Nxd4 O-O 10. Kh1 Qc7 11. Qe2 Ne5 12. Bb3 b6 13. f4 Ned7 14. f5 Nc5 15. fxe6 fxe6 16. Bc2 a5 17. Bd2 Bd7 18. b3 Be8 19. Ncb5 Qb8 20. a3 Bh5 21. Qe1 Bg6 22. e5 dxe5 23. Nc6 Qb7 24. Nxe7+ Qxe7 25. Bxg6 hxg6 26. Rb1 Nfe4 27. Be3 Rf5 28. g4 Rxf1+ 29. Qxf1 Rf8 30. Qg2 Qh4 31. b4 axb4 32. axb4 Nf2+ 33. Bxf2 Rxf2 34. Qg3 Qxg3 35. hxg3 Ne4 36. Re1 Nxg3+ 37. Kg1 Rf4 38. Rxe5 Rxc4 39. Rxe6 Rxg4 40. Rxb6 Nf5+ 41. Kf2 Rxb4 42. Rb8+ Kh7 43. Rb7 Kh6 44. Kf1 Rb3 45. Kf2 g5 46. Nd6 Rxb7 47. Nxb7 g4 48. Nc5 Kg5 49. Ne4+ Kf4 50. Nd2 g3+ 51. Kg2 Nh4+ 0-1

[Event "10th LBHM Open 2024"]
[Site "Pune"]
[Date "2024.05.21"]
[Round "2.5"]
[White "Laxman, R.R."]
[Black "Yug Amit Sonigara"]
[Result "1-0"]
[ECO "E02"]
[WhiteElo "2336"]
[BlackElo "1664"]
[PlyCount "141"]
[EventDate "2024.05.21"]
[EventType "swiss"]
[EventCountry "IND"]
[TimeControl "5400+30"]

1. d4 {[%emt 0:00:02]} d5 {[%emt 0:01:22]} 2. Nf3 {[%emt 0:00:03]} Nf6 {[%emt 0:00:27]} 3. c4 {[%emt 0:00:05]} e6 {[%emt 0:00:08]} 4. g3 {[%emt 0:00:05]} Be7 {[%emt 0:01:45]} 5. Bg2 {[%emt 0:00:05]} O-O {[%emt 0:00:33]} 6. O-O {[%emt 0:00:05]} dxc4 {[%emt 0:00:06]} 7. Qa4 {[%emt 0:00:03]} Nbd7 {[%emt 0:06:47]} 8. Qxc4 {[%emt 0:00:12]} c5 {[%emt 0:04:22]} 9. dxc5 {[%emt 0:00:23]} Nxc5 {[%emt 0:02:10]} 10. Be3 {[%emt 0:00:07]} Na6 {[%emt 0:14:12]} 11. Nc3 {[%emt 0:00:44]} Qc7 {[%emt 0:02:52]} 12. Qxc7 {[%emt 0:00:29]} Nxc7 {[%emt 0:00:11]} 13. Rac1 {[%emt 0:02:50]} Ncd5 {[%emt 0:02:11]} 14. Nxd5 {[%emt 0:00:02]} Nxd5 {[%emt 0:00:15]} 15. Bc5 {[%emt 0:00:02]} Bxc5 {[%emt 0:01:01]} 16. Rxc5 {[%emt 0:00:02]} b6 {[%emt 0:00:30]} 17. Rc2 {[%emt 0:00:44]} Bb7 {[%emt 0:00:09]} 18. a3 {[%emt 0:00:55]} Rac8 {[%emt 0:00:44]} 19. Rfc1 {[%emt 0:00:02]} Ne7 {[%emt 0:01:58]} 20. Nd4 {[%emt 0:01:28]} Bxg2 {[%emt 0:00:12]} 21. Kxg2 {[%emt 0:00:09]} Rxc2 {[%emt 0:00:10]} 22. Rxc2 {[%emt 0:00:01]} Rc8 {[%emt 0:00:16]} 23. Rxc8+ {[%emt 0:00:27]} Nxc8 {[%emt 0:00:13]} 24. Kf3 {[%emt 0:01:34]} Kf8 {[%emt 0:00:45]} 25. e4 {[%emt 0:00:18]} Ke7 {[%emt 0:00:50]} 26. e5 {[%emt 0:00:01]} Kd7 {[%emt 0:00:24]} 27. Ke4 {[%emt 0:00:02]} f5+ {[%emt 0:37:58]} 28. Kd3 {[%emt 0:00:57]} a6 {[%emt 0:02:09]} 29. b4 {[%emt 0:00:34]} Na7 {[%emt 0:01:27]} 30. f4 {[%emt 0:00:43]} Nc6 {[%emt 0:04:16]} 31. Nf3 {[%emt 0:00:23]} b5 {[%emt 0:01:44]} 32. Kc3 {[%emt 0:00:13]} h6 {[%emt 0:02:13]} 33. Nd2 {[%emt 0:00:36]} Nd8 {[%emt 0:00:33]} 34. Nb3 {[%emt 0:00:23]} Nb7 {[%emt 0:00:06]} 35. Nd4 {[%emt 0:00:43]} Nd8 {[%emt 0:00:24]} 36. h3 {[%emt 0:00:10]} h5 {[%emt 0:01:05]} 37. Nb3 {[%emt 0:00:27]} Nb7 {[%emt 0:12:32]} 38. Kd4 {[%emt 0:00:10]} Kc6 {[%emt 0:00:00]} 39. Nc1 {[%emt 0:00:49]} Kb6 {[%emt 0:00:00]} 40. Nd3 {[%emt 0:00:15]} Kc6 {[%emt 0:00:00]} 41. Nf2 {[%emt 0:00:28]} Kd7 {[%emt 0:00:00]} 42. Nd3 {[%emt 0:01:34]} Kc6 {[%emt 0:00:00]} 43. Ne1 {[%emt 0:00:01]} Nd8 {[%emt 0:00:00]} 44. Nf3 {[%emt 0:00:13]} Nf7 {[%emt 0:00:00]} 45. Kd3 {[%emt 0:00:37]} Kd5 {[%emt 0:00:00]} 46. Nh4 {[%emt 0:00:56]} Nh8 {[%emt 0:00:00]} 47. Ng2 {[%emt 0:00:12]} Nf7 {[%emt 0:00:00]} 48. Ne3+ {[%emt 0:00:20]} Kc6 {[%emt 0:00:00]} 49. Kd4 {[%emt 0:00:11]} Nd8 {[%emt 0:00:00]} 50. Ng2 {[%emt 0:00:56]} Nf7 {[%emt 0:00:00]} 51. Nh4 {[%emt 0:00:18]} Nh8 {[%emt 0:00:00]} 52. Ke3 {[%emt 0:00:19]} Kd5 {[%emt 0:00:00]} 53. Kd3 {[%emt 0:00:01]} Kc6 {[%emt 0:01:25]} 54. Nf3 {[%emt 0:00:37]} Ng6 {[%emt 0:02:21]} 55. h4 {[%emt 0:01:49]} Nf8 {[%emt 0:00:15]} 56. Kd4 {[%emt 0:00:14]} Nh7 {[%emt 0:01:50]} 57. Kc3 {[%emt 0:00:50]} Kb6 {[%emt 0:00:50]} 58. Kb3 {[%emt 0:00:38]} Kb7 {[%emt 0:00:51]} 59. a4 {[%emt 0:00:13]} Kb6 {[%emt 0:00:11]} 60. a5+ {[%emt 0:07:58]} Kb7 {[%emt 0:00:27]} 61. Kc3 {[%emt 0:00:10]} Kc7 {[%emt 0:00:25]} 62. Kd3 {[%emt 0:00:48]} Kd7 {[%emt 0:00:32]} 63. Nd4 {[%emt 0:00:09]} Nf8 {[%emt 0:00:08]} 64. Nb3 {[%emt 0:00:01]} Kc6 {[%emt 0:01:23]} 65. Nc5 {[%emt 0:00:05]} g6 {[%emt 0:00:16]} 66. Kd4 {[%emt 0:00:25]} Kc7 {[%emt 0:00:38]} 67. Nxa6+ {[%emt 0:00:21]} Kc6 {[%emt 0:00:21]} 68. Nc5 {[%emt 0:00:08]} Kc7 {[%emt 0:00:07]} 69. Kd3 {[%emt 0:00:17]} Kc6 {[%emt 0:00:09]} 70. Nb3 {[%emt 0:00:05]} Kc7 {[%emt 0:00:08]} 71. Nd4 {[%emt 0:00:02]} 1-0

[Event "10th LBHM Open 2024"]
[Site "Pune"]
[Date "2024.05.21"]
[Round "2.6"]
[White "Aaradhya Jain"]
[Black "Ratnakaran, K.."]
[Result "0-1"]
[ECO "A56"]
[WhiteElo "1666"]
[BlackElo "2275"]
[PlyCount "92"]
[EventDate "2024.05.21"]
[EventType "swiss"]
[EventCountry "IND"]
[TimeControl "5400+30"]

1. d4 {[%emt 0:00:02]} Nf6 {[%emt 0:02:31]} 2. c4 {[%emt 0:00:07]} c5 {[%emt 0:00:04]} 3. d5 {[%emt 0:00:05]} e5 {[%emt 0:00:04]} 4. Nc3 {[%emt 0:00:12]} d6 {[%emt 0:00:04]} 5. e4 {[%emt 0:01:37]} a6 {[%emt 0:00:03]} 6. Nf3 {[%emt 0:04:53]} g6 {[%emt 0:00:10]} 7. Be2 {[%emt 0:01:42]} Bg7 {[%emt 0:00:06]} 8. O-O {[%emt 0:00:06]} Nbd7 {[%emt 0:00:09]} 9. a4 {[%emt 0:02:21]} O-O {[%emt 0:00:40]} 10. Ne1 {[%emt 0:05:54]} Ne8 {[%emt 0:00:12]} 11. f4 {[%emt 0:10:15]} f5 {[%emt 0:00:05]} 12. Nd3 {[%emt 0:05:40]} Qe7 {[%emt 0:00:27]} 13. Qc2 {[%emt 0:06:52]} fxe4 {[%emt 0:08:03]} 14. Nxe4 {[%emt 0:00:14]} exf4 {[%emt 0:00:05]} 15. Nxf4 {[%emt 0:03:51]} Bd4+ {[%emt 0:00:06]} 16. Kh1 {[%emt 0:00:54]} Ng7 {[%emt 0:00:06]} 17. Nh3 {[%emt 0:16:52]} Rxf1+ {[%emt 0:01:54]} 18. Bxf1 {[%emt 0:00:02]} Nf6 {[%emt 0:00:17]} 19. Nhg5 {[%emt 0:07:03]} Bf5 {[%emt 0:00:51]} 20. Bd3 {[%emt 0:13:24]} Nxe4 {[%emt 0:01:00]} 21. Bxe4 {[%emt 0:06:00]} Bxe4 {[%emt 0:00:10]} 22. Qxe4 {[%emt 0:00:04]} Qxe4 {[%emt 0:00:05]} 23. Nxe4 {[%emt 0:00:05]} Re8 {[%emt 0:00:04]} 24. Bf4 {[%emt 0:00:06]} Rxe4 {[%emt 0:00:09]} 25. Bxd6 {[%emt 0:00:16]} Nf5 {[%emt 0:00:06]} 26. Bc7 {[%emt 0:00:26]} Bxb2 {[%emt 0:00:32]} 27. Rb1 {[%emt 0:00:24]} Be5 {[%emt 0:00:11]} 28. Ba5 {[%emt 0:00:11]} Rxc4 {[%emt 0:00:29]} 29. g3 {[%emt 0:00:41]} Rxa4 {[%emt 0:00:11]} 30. Bb6 {[%emt 0:00:17]} c4 {[%emt 0:00:21]} 31. g4 {[%emt 0:00:06]} Nd6 {[%emt 0:00:15]} 32. Re1 {[%emt 0:00:05]} Ra1 {[%emt 0:00:06]} 33. Rxa1 {[%emt 0:00:05]} Bxa1 {[%emt 0:00:04]} 34. Bc5 {[%emt 0:00:17]} Be5 {[%emt 0:00:05]} 35. Kg2 {[%emt 0:00:06]} c3 {[%emt 0:00:05]} 36. Kf3 {[%emt 0:00:04]} Nc4 {[%emt 0:00:17]} 37. Be3 {[%emt 0:00:20]} c2 {[%emt 0:00:20]} 38. d6 {[%emt 0:00:08]} Nxe3 {[%emt 0:00:08]} 39. d7 {[%emt 0:00:03]} Bc7 {[%emt 0:00:06]} 40. d8=Q+ {[%emt 0:00:11]} Bxd8 {[%emt 0:00:04]} 41. Kxe3 {[%emt 0:00:10]} c1=Q+ {[%emt 0:00:05]} 42. Ke4 {[%emt 0:00:11]} Qc4+ {[%emt 0:00:11]} 43. Ke5 {[%emt 0:00:06]} Bc7+ {[%emt 0:00:13]} 44. Kf6 {[%emt 0:00:04]} Qf7+ {[%emt 0:00:17]} 45. Kg5 {[%emt 0:00:06]} Bd8+ {[%emt 0:00:11]} 46. Kh6 {[%emt 0:00:07]} Qf8# {[%emt 0:00:04]} 0-1